bitfinex/quotes_BTCUSD_20241116
["timestamp","ask_amount","ask_price","bid_price","bid_amount"]
[1731731423543,0.0008571,91147.0,91146.0,0.40542635]
[1731731423943,0.0008571,91147.0,91146.0,0.32360145]
[1731731424328,0.0835571,91147.0,91146.0,0.25746823]
[1731731424532,0.0835571,91147.0,91146.0,0.20822039]
[1731731424765,0.0008571,91147.0,91146.0,0.29004529]
[1731731425827,0.0008571,91147.0,91146.0,0.31304529]
[1731731426653,0.0008571,91147.0,91146.0,0.36229313]
[1731731426854,0.0008571,91147.0,91146.0,0.2145389]
[1731731427263,0.0008571,91147.0,91146.0,0.36229811]
[1731731427428,0.0008571,91147.0,91146.0,0.2145389]
[1731731428467,0.0008571,91147.0,91146.0,0.36230131]
[1731731428872,0.0008571,91147.0,91146.0,0.09851262]
[1731731429081,0.0008571,91147.0,91144.0,0.29005352]
[1731731429295,0.0008571,91147.0,91144.0,0.0818249]
[1731731429718,0.0008571,91147.0,91144.0,0.1915409]
[1731731430357,0.0008571,91147.0,91145.0,0.109714]
[1731731430560,0.0008571,91147.0,91144.0,0.0818249]
[1731731430761,0.0008571,91147.0,91144.0,0.1915399]
[1731731431405,0.0008571,91147.0,91144.0,0.0818249]
[1731731431822,0.0008571,91147.0,91144.0,0.1915399]
[1731731432033,0.0008571,91147.0,91141.0,0.27395997]
[1731731432034,0.0045146,91145.0,91141.0,0.27395997]
[1731731432284,0.0045146,91145.0,91144.0,0.1915409]
[1731731432492,0.0045146,91145.0,91144.0,0.0818249]
[1731731432696,0.0045146,91145.0,91144.0,0.1915409]
[1731731435808,0.0045146,91145.0,91144.0,0.0818249]
[1731731437690,0.0045146,91145.0,91143.0,0.109717]
[1731731438032,0.0045146,91145.0,91144.0,0.0818249]
[1731731440660,0.0045146,91145.0,91144.0,0.4109729]
[1731731441830,0.0045146,91145.0,91144.0,0.1915409]
[1731731442037,0.0045146,91145.0,91144.0,0.4109719]
[1731731442588,0.0008571,91147.0,91146.0,0.109714]
[1731731442798,0.0008571,91147.0,91146.0,0.132714]
[1731731443397,0.0008571,91147.0,91146.0,0.32973129]
[1731731448281,0.0008571,91147.0,91146.0,0.132714]
[1731731450389,0.0008571,91147.0,91146.0,0.209714]
[1731731451462,0.0008571,91147.0,91146.0,0.132714]
[1731731452119,0.0017144,91157.0,91153.0,0.023]
[1731731452333,0.16643101,91157.0,91156.0,0.1866498]
[1731731452564,0.0017144,91157.0,91156.0,0.60223144]
[1731731452767,0.0017144,91157.0,91156.0,0.40541435]
[1731731452976,0.0017144,91157.0,91156.0,0.65143572]
[1731731453197,0.0017144,91157.0,91156.0,0.40541435]
[1731731453622,0.0017144,91157.0,91156.0,0.65139367]
[1731731455243,0.0017144,91157.0,91156.0,0.40541435]
[1731731456507,0.0017144,91157.0,91156.0,0.64680733]
[1731731456712,0.0017144,91157.0,91156.0,0.56498243]
[1731731456910,0.0017144,91157.0,91156.0,0.36822905]
[1731731457117,0.0017144,91157.0,91156.0,0.38979827]
[1731731457322,0.0017144,91157.0,91156.0,0.58655165]
[1731731457516,0.0017144,91157.0,91156.0,0.38979827]
[1731731457950,0.0017144,91157.0,91156.0,0.58655165]
[1731731458724,0.0017144,91157.0,91156.0,0.38979827]
[1731731458951,0.0017144,91157.0,91156.0,0.58654809]
[1731731459162,0.0017144,91157.0,91156.0,0.38979827]
[1731731462900,0.0017144,91157.0,91156.0,0.30797337]
[1731731464089,0.0017144,91157.0,91156.0,0.45536338]
[1731731466335,0.0017144,91157.0,91156.0,0.30797337]
[1731731471619,0.0017144,91157.0,91156.0,0.40625311]
[1731731474464,0.0017144,91157.0,91156.0,0.17591082]
[1731731474678,0.0017144,91165.0,91156.0,0.28997337]
[1731731474893,0.0017144,91165.0,91158.0,0.1636498]
[1731731475121,0.0017144,91165.0,91158.0,0.31851235]
[1731731475353,0.0017144,91165.0,91158.0,0.42821135]
[1731731476668,0.0017144,91165.0,91158.0,0.45121135]
[1731731480949,0.0017144,91165.0,91158.0,0.45621135]
[1731731481596,0.0017144,91165.0,91158.0,0.55445233]
[1731731482011,0.0017144,91165.0,91158.0,0.55493773]
[1731731482241,0.0017144,91165.0,91158.0,0.55491371]
[1731731482452,0.0017144,91165.0,91158.0,0.45669675]
[1731731483293,0.0045146,91175.0,91174.0,0.10968]
[1731731483542,0.0045146,91175.0,91174.0,0.13268]
[1731731483970,0.0045146,91175.0,91174.0,0.023]
[1731731484176,0.0045146,91175.0,91174.0,0.13268]
[1731731485333,0.0045146,91175.0,91174.0,0.15449697]
[1731731487051,0.0017144,91176.0,91174.0,0.04481697]
[1731731487288,0.0045146,91187.0,91174.0,0.04481697]
[1731731487289,0.0824288,91189.0,91188.0,0.109663]
[1731731487496,0.0824288,91189.0,91188.0,0.2733128]
[1731731489704,0.0824288,91189.0,91188.0,0.31697762]
[1731731491433,0.0779142,91189.0,91188.0,0.31697762]
[1731731492055,0.0017142,91189.0,91188.0,0.31697762]
[1731731493597,0.0062288,91189.0,91188.0,0.31697762]
[1731731493772,0.0017142,91189.0,91188.0,0.31697762]
[1731731495214,0.0062288,91189.0,91188.0,0.31697762]
[1731731497248,0.0017142,91189.0,91188.0,0.31697762]
[1731731497655,0.0062288,91189.0,91188.0,0.31697762]
[1731731497828,0.0017142,91189.0,91188.0,0.31697762]
[1731731498460,0.0062288,91189.0,91188.0,0.31697762]
[1731731499441,0.0017142,91189.0,91188.0,0.31697762]
[1731731499890,0.0062288,91189.0,91188.0,0.31697762]
[1731731500750,0.0017142,91189.0,91188.0,0.31697762]
[1731731500919,0.0062288,91189.0,91188.0,0.31697762]
[1731731501132,0.0017142,91189.0,91188.0,0.31697762]
[1731731502548,0.0062288,91189.0,91188.0,0.31697762]
[1731731514436,0.0062288,91189.0,91181.0,0.219342]
[1731731514437,0.0045146,91183.0,91181.0,0.3011679]
[1731731514647,0.0045146,91183.0,91182.0,0.10967]
[1731731519113,0.0045146,91183.0,91182.0,0.1914949]
[1731731519308,0.0761,91187.0,91186.0,0.109665]
[1731731519309,0.0045146,91187.0,91186.0,0.109665]
[1731731519475,0.0045146,91187.0,91186.0,0.1914899]
[1731731519905,0.0017142,91189.0,91188.0,0.109663]
[1731731520109,0.0017142,91189.0,91188.0,0.1914879]
[1731731520332,0.0062288,91189.0,91188.0,0.1914879]
[1731731522299,0.0017142,91189.0,91188.0,0.1914879]
[1731731522530,0.0062288,91189.0,91188.0,0.1914879]
[1731731525961,0.0062288,91189.0,91188.0,0.28987964]
[1731731526580,0.0062288,91189.0,91188.0,0.1914879]
[1731731527988,0.0527288,91189.0,91187.0,0.14758273]
[1731731528161,0.0527288,91189.0,91185.0,0.1965245]
[1731731528162,0.0876146,91188.0,91185.0,0.09843779]
[1731731528365,0.0876146,91188.0,91183.0,0.36691973]
[1731731528366,0.0045146,91185.0,91184.0,0.20810579]
[1731731528635,0.0045146,91185.0,91184.0,0.109668]
[1731731529459,0.0045146,91185.0,91184.0,0.1914929]
[1731731532681,0.0045146,91185.0,91184.0,0.2733178]
[1731731533760,0.0017142,91189.0,91184.0,0.1636498]
[1731731533990,0.0017142,91189.0,91188.0,0.109663]
[1731731535107,0.0017142,91189.0,91188.0,0.2733128]
[1731731537058,0.0017142,91189.0,91188.0,0.37177579]
[1731731537256,0.0017142,91189.0,91188.0,0.2733128]
[1731731538158,0.0017142,91189.0,91185.0,0.14770396]
[1731731538388,0.0017142,91189.0,91188.0,0.1914879]
[1731731538613,0.0801142,91189.0,91188.0,0.1914879]
[1731731539500,0.0801142,91189.0,91188.0,0.2733128]
[1731731540142,0.0801142,91189.0,91188.0,0.1914879]
[1731731540353,0.0801142,91189.0,91188.0,0.2733128]
[1731731540554,0.0801142,91189.0,91188.0,0.1914879]
[1731731540967,0.0801142,91189.0,91188.0,0.2733128]
[1731731541168,0.0801142,91189.0,91188.0,0.1914879]
[1731731543101,0.0801142,91189.0,91188.0,0.0818249]
[1731731543553,0.0846288,91189.0,91182.0,0.09846785]
[1731731543761,0.0846288,91189.0,91181.0,0.04390283]
[1731731543762,0.0045146,91184.0,91183.0,0.09846785]
[1731731543979,0.0045146,91184.0,91182.0,0.09846785]
[1731731543980,0.1612836,91183.0,91182.0,0.09846785]
[1731731544214,0.0045146,91181.0,91178.0,0.09846785]
[1731731544444,0.0782,91182.0,91177.0,0.0017138]
[1731731544445,0.109675,91178.0,91177.0,0.0017138]
[1731731544651,0.109675,91178.0,91177.0,0.10018071]
[1731731544867,0.109675,91178.0,91177.0,0.0017138]
[1731731545304,0.1141896,91178.0,91177.0,0.0017138]
[1731731547915,0.0045146,91178.0,91177.0,0.0017138]
[1731731549911,0.0045146,91178.0,91177.0,0.1113898]
[1731731550131,0.0045146,91184.0,91183.0,0.109669]
[1731731550363,0.16923121,91186.0,91183.0,0.12461791]
[1731731550581,0.0045146,91186.0,91185.0,0.109667]
[1731731550798,0.0045146,91186.0,91183.0,0.12461791]
[1731731550799,0.0045146,91190.0,91186.0,0.109665]
[1731731553437,0.0045146,91191.0,91186.0,0.109665]
[1731731553629,0.0045146,91195.0,91186.0,0.109665]
[1731731553840,0.0045146,91193.0,91188.0,0.109663]
[1731731554050,0.0045146,91195.0,91188.0,0.20800133]
[1731731554277,0.0045146,91193.0,91188.0,0.25728853]
[1731731554488,0.0045146,91195.0,91188.0,0.25728853]
[1731731554915,0.0045146,91195.0,91188.0,0.109663]
[1731731555777,0.0045146,91196.0,91188.0,0.20801934]
[1731731556191,1.2991439,91200.0,91188.0,0.20801934]
[1731731556192,0.0045146,91193.0,91188.0,0.20801934]
[1731731556628,0.0045146,91195.0,91188.0,0.20801934]
[1731731556862,0.0045146,91193.0,91188.0,0.20801934]
[1731731557073,0.0045146,91193.0,91188.0,0.109663]
[1731731557527,0.0045146,91193.0,91188.0,0.20803271]
[1731731558781,0.0045146,91193.0,91188.0,0.25329637]
[1731731559226,0.0045146,91195.0,91188.0,0.25329637]
[1731731560726,0.0045146,91193.0,91188.0,0.37791428]
[1731731561361,0.0045146,91193.0,91188.0,0.27954457]
[1731731561559,0.0045146,91193.0,91188.0,0.37791428]
[1731731562478,0.0045146,91193.0,91188.0,0.27954457]
[1731731563868,1.2991439,91200.0,91184.0,0.0017136]
[1731731563869,0.1141816,91185.0,91184.0,0.0017136]
[1731731566716,0.22324415,91185.0,91184.0,0.0017136]
[1731731567167,0.35424415,91185.0,91184.0,0.0017136]
[1731731570144,0.0045146,91185.0,91184.0,0.1113816]
[1731731571589,0.0008568,91187.0,91186.0,0.109665]
[1731731572304,0.0053714,91187.0,91186.0,0.109665]
[1731731576453,0.0008568,91187.0,91186.0,0.109665]
[1731731576658,0.0053714,91187.0,91186.0,0.109665]
[1731731576865,0.0008568,91187.0,91186.0,0.109665]
[1731731577101,0.0053714,91187.0,91186.0,0.109665]
[1731731577303,0.0008568,91187.0,91186.0,0.109665]
[1731731578058,0.0053714,91187.0,91186.0,0.109665]
[1731731580306,0.0053714,91187.0,91184.0,0.2647425]
[1731731580307,0.0045146,91185.0,91184.0,0.0017136]
[1731731580526,0.1141816,91185.0,91184.0,0.0017136]
[1731731580744,0.1934816,91185.0,91184.0,0.0017136]
[1731731581473,0.0838146,91185.0,91184.0,0.0017136]
[1731731581702,0.0045146,91185.0,91184.0,0.1113816]
[1731731582542,0.0045146,91185.0,91184.0,0.0017136]
[1731731582782,0.1141816,91185.0,91184.0,0.0017136]
[1731731584172,0.0045146,91185.0,91184.0,0.0017136]
[1731731584385,0.1141816,91185.0,91184.0,0.0017136]
[1731731587467,0.34944415,91185.0,91184.0,0.0017136]
[1731731592752,0.0053714,91185.0,91184.0,0.23597802]
[1731731592964,0.0008568,91185.0,91184.0,0.23597802]
[1731731593186,0.0008568,91185.0,91184.0,0.2809499]
[1731731593409,0.0008568,91185.0,91184.0,0.15635348]
[1731731595475,0.0053714,91185.0,91184.0,0.15635348]
[1731731597479,0.0008568,91185.0,91184.0,0.15635348]
[1731731597883,0.0053714,91185.0,91184.0,0.15635348]
[1731731598328,0.0008568,91185.0,91184.0,0.15635348]
[1731731598529,0.0053714,91185.0,91184.0,0.15635348]
[1731731598730,0.0008568,91185.0,91184.0,0.15635348]
[1731731605047,0.0008568,91185.0,91184.0,0.23809308]
[1731731605250,0.0053714,91185.0,91184.0,0.23809308]
[1731731605463,0.0008568,91185.0,91184.0,0.31983268]
[1731731605687,0.0008568,91185.0,91184.0,0.55026903]
[1731731605929,0.0008568,91185.0,91184.0,0.59945593]
[1731731606137,0.0008568,91185.0,91184.0,0.45189523]
[1731731606561,0.0008568,91185.0,91184.0,0.59947094]
[1731731606770,0.0008568,91185.0,91184.0,0.45189523]
[1731731607624,0.0008568,91185.0,91184.0,0.50049523]
[1731731608724,0.0008568,91185.0,91184.0,0.69724283]
[1731731608944,0.0008568,91185.0,91184.0,0.50049523]
[1731731610707,0.0008568,91185.0,91184.0,0.69726609]
[1731731610952,0.0008568,91185.0,91184.0,0.74647573]
[1731731611629,0.0008568,91185.0,91184.0,0.50049523]
[1731731613605,0.0008568,91185.0,91184.0,0.69724702]
[1731731614044,0.0008568,91185.0,91184.0,0.58259523]
[1731731614261,0.0008568,91187.0,91186.0,0.1847504]
[1731731614471,0.0008568,91187.0,91186.0,0.40272706]
[1731731614940,0.0008568,91187.0,91186.0,0.40472706]
[1731731615619,0.0008568,91187.0,91186.0,0.40272706]
[1731731616465,0.0008568,91187.0,91186.0,0.48446666]
[1731731616894,0.0008568,91187.0,91186.0,0.48646666]
[1731731617769,0.0017142,91189.0,91188.0,0.1381484]
[1731731617981,0.0017142,91189.0,91188.0,0.27902506]
[1731731618197,0.0758,91213.0,91196.0,0.005]
[1731731618410,0.0045146,91217.0,91199.0,0.21475]
[1731731618648,0.0045146,91217.0,91199.0,0.32381255]
[1731731619098,1.2988837,91200.0,91199.0,0.32429795]
[1731731619324,1.2988837,91200.0,91199.0,0.57000185]
[1731731619533,1.2988837,91200.0,91199.0,0.32429795]
[1731731621508,1.2988837,91200.0,91199.0,0.56975879]
[1731731622139,1.2988837,91200.0,91199.0,0.59207009]
[1731731622587,1.2988837,91200.0,91199.0,0.34660925]
[1731731623182,1.2988837,91200.0,91199.0,0.59207009]
[1731731623537,1.2988837,91200.0,91199.0,0.34660925]
[1731731623755,1.2988837,91200.0,91199.0,0.39050868]
[1731731623970,1.2988837,91200.0,91199.0,0.58680147]
[1731731624576,1.2988837,91200.0,91199.0,0.5867922]
[1731731625338,0.88154539,91200.0,91199.0,0.47224828]
[1731731625504,0.86931007,91200.0,91199.0,0.47224828]
[1731731626946,0.86931007,91200.0,91199.0,0.47424828]
[1731731627245,0.87016717,91200.0,91199.0,0.47424828]
[1731731627490,0.87016717,91200.0,91199.0,0.57231109]
[1731731627923,0.87016717,91200.0,91199.0,0.47424828]
[1731731628283,0.45282886,91200.0,91199.0,0.47224828]
[1731731628675,0.45282886,91200.0,91199.0,0.39050868]
[1731731630551,0.45282886,91200.0,91199.0,0.55398788]
[1731731631381,0.45282886,91200.0,91199.0,0.47688788]
[1731731632691,0.43224745,91200.0,91199.0,0.47688788]
[1731731633250,0.43224745,91200.0,91199.0,0.47640248]
[1731731633468,0.43224745,91200.0,91199.0,0.47688788]
[1731731634065,0.01490914,91200.0,91199.0,0.55862748]
[1731731634278,0.00995746,91200.0,91199.0,0.63972748]
[1731731634501,0.00995746,91200.0,91199.0,0.64172748]
[1731731635409,0.00995746,91200.0,91199.0,0.69092748]
[1731731636651,0.0045146,91224.0,91217.0,0.137628]
[1731731636853,0.0045146,91223.0,91217.0,0.41016975]
[1731731637067,0.0045146,91223.0,91222.0,0.109622]
[1731731637253,0.0045146,91223.0,91222.0,0.1913616]
[1731731639276,0.0045146,91223.0,91222.0,0.0817396]
[1731731639497,0.0045146,91223.0,91222.0,0.1913616]
[1731731639917,0.0045146,91223.0,91222.0,0.0817396]
[1731731640174,0.0045146,91223.0,91222.0,0.1913616]
[1731731641034,0.0045146,91223.0,91222.0,0.12720882]
[1731731641444,0.0864146,91226.0,91225.0,0.109619]
[1731731643152,0.0045146,91226.0,91225.0,0.109619]
[1731731643571,0.0045146,91226.0,91225.0,0.1913586]
[1731731644964,0.0045146,91226.0,91225.0,0.109619]
[1731731654726,0.0813146,91226.0,91225.0,0.109619]
[1731731654982,0.0813146,91226.0,91222.0,0.04546922]
[1731731654983,0.0045146,91223.0,91222.0,0.04546922]
[1731731655125,0.0045146,91223.0,91222.0,0.109622]
[1731731655360,0.0045146,91223.0,91222.0,0.328866]
[1731731656443,0.0045146,91225.0,91224.0,0.10962]
[1731731661549,0.0045146,91225.0,91221.0,0.06625799]
[1731731661775,0.0045146,91223.0,91222.0,0.109622]
[1731731663494,0.0045146,91223.0,91221.0,0.0817396]
[1731731663720,0.049,91222.0,91220.0,0.04506643]
[1731731663930,0.049,91222.0,91221.0,0.109623]
[1731731665401,0.049,91222.0,91217.0,0.02183223]
[1731731665402,0.049,91222.0,91217.0,0.12015285]
[1731731665620,0.1141426,91217.0,91216.0,0.04406883]
[1731731665842,0.0045146,91217.0,91216.0,0.04406883]
[1731731666071,0.1258,91218.0,91208.0,0.219278]
[1731731666072,0.0045146,91216.0,91212.0,0.109633]
[1731731666497,0.0045146,91216.0,91209.0,0.180163]
[1731731666701,0.0045146,91216.0,91211.0,0.109634]
[1731731667135,0.0045146,91216.0,91209.0,0.180163]
[1731731667353,0.0045146,91216.0,91212.0,0.109634]
[1731731667536,0.0045146,91216.0,91213.0,0.109632]
[1731731667771,0.0045146,91216.0,91209.0,0.180163]
[1731731667772,0.1141516,91210.0,91209.0,0.0984234]
[1731731667992,0.219269,91212.0,91199.0,0.001714]
[1731731667993,0.0045146,91209.0,91206.0,0.0984234]
[1731731668217,0.2381616,91201.0,91199.0,0.16643061]
[1731731668449,0.36467015,91201.0,91199.0,0.001714]
[1731731668706,0.34722415,91201.0,91199.0,0.001714]
[1731731668930,0.36464083,91201.0,91199.0,0.001714]
[1731731669375,0.35672525,91201.0,91199.0,0.001714]
[1731731669588,0.3836227,91201.0,91199.0,0.001714]
[1731731669795,0.3567065,91201.0,91199.0,0.001714]
[1731731671540,0.34722415,91201.0,91199.0,0.001714]
[1731731675455,0.1285146,91201.0,91199.0,0.001714]
[1731731675681,0.0833146,91201.0,91200.0,0.111363]
[1731731676564,0.0833146,91201.0,91200.0,0.001714]
[1731731677017,0.0833146,91201.0,91200.0,0.111363]
[1731731678599,0.0833146,91201.0,91200.0,0.001714]
[1731731679026,0.0833146,91201.0,91200.0,0.111363]
[1731731679693,0.0833146,91201.0,91200.0,0.001714]
[1731731683565,0.0833146,91201.0,91200.0,0.111363]
[1731731686264,0.0045146,91201.0,91200.0,0.111363]
[1731731702204,0.0785,91211.0,91200.0,0.111363]
[1731731702205,0.0830146,91211.0,91210.0,0.109637]
[1731731702419,0.0045146,91209.0,91208.0,0.109639]
[1731731704192,0.0045146,91209.0,91202.0,0.219293]
[1731731704390,0.0045146,91208.0,91207.0,0.109639]
[1731731705440,0.0045146,91208.0,91202.0,0.219293]
[1731731705643,0.0045146,91208.0,91207.0,0.10964]
[1731731709709,0.014022,91208.0,91207.0,0.10964]
[1731731709927,0.0045146,91208.0,91207.0,0.10964]
[1731731710145,0.01402206,91208.0,91207.0,0.10964]
[1731731713360,0.01402379,91208.0,91207.0,0.10964]
[1731731714252,0.01402379,91208.0,91202.0,0.219293]
[1731731714470,0.0045146,91208.0,91207.0,0.10964]
[1731731714889,0.01402531,91208.0,91207.0,0.10964]
[1731731715945,0.01402531,91208.0,91202.0,0.219293]
[1731731715946,0.0045146,91201.0,91200.0,0.1931026]
[1731731716186,0.0045146,91201.0,91200.0,0.111363]
[1731731717037,0.0045146,91201.0,91200.0,0.001714]
[1731731717269,0.0800146,91201.0,91200.0,0.001714]
[1731731717502,0.08952738,91201.0,91200.0,0.001714]
[1731731717722,0.19917438,91201.0,91200.0,0.001714]
[1731731719735,0.19917105,91201.0,91200.0,0.001714]
[1731731720199,0.1896616,91201.0,91200.0,0.001714]
[1731731720798,0.19917009,91201.0,91200.0,0.001714]
[1731731721234,0.30823264,91201.0,91200.0,0.001714]
[1731731721879,0.08952309,91201.0,91200.0,0.001714]
[1731731722015,0.08952309,91201.0,91200.0,0.111363]
[1731731722226,0.08952309,91201.0,91200.0,0.001714]
[1731731723048,0.08952309,91201.0,91200.0,0.111363]
[1731731723335,0.0045146,91201.0,91200.0,0.111363]
[1731731723533,0.01401915,91201.0,91200.0,0.111363]
[1731731724375,0.0045146,91201.0,91200.0,0.111363]
[1731731726937,0.0045146,91202.0,91200.0,0.111363]
[1731731727146,0.0008569,91207.0,91206.0,0.132641]
[1731731727305,0.0008569,91207.0,91206.0,0.53548275]
[1731731727468,0.0008569,91207.0,91206.0,0.68304489]
[1731731727675,0.0008569,91207.0,91206.0,0.53548275]
[1731731728318,0.0008569,91207.0,91206.0,0.68297836]
[1731731729178,0.0008569,91207.0,91206.0,0.53548275]
[1731731730259,0.0008569,91207.0,91206.0,0.55746661]
[1731731732089,0.0008569,91207.0,91206.0,0.47936661]
[1731731732300,0.0008569,91207.0,91206.0,0.57762047]
[1731731732683,0.0008569,91207.0,91206.0,0.47936661]
[1731731732889,0.0008569,91207.0,91206.0,0.39762701]
[1731731733754,0.0008569,91207.0,91206.0,0.35042701]
[1731731733994,0.0008569,91207.0,91206.0,0.43216661]
[1731731735827,0.0008569,91207.0,91206.0,0.47926661]
[1731731738121,0.0008569,91207.0,91206.0,0.57752047]
[1731731738688,0.0008569,91207.0,91206.0,0.56126661]
[1731731738896,0.0008569,91207.0,91206.0,0.70876222]
[1731731739093,0.0008569,91207.0,91206.0,0.56126661]
[1731731739698,0.0008569,91207.0,91206.0,0.6594017]
[1731731740116,0.0008569,91207.0,91206.0,0.56326661]
[1731731740552,0.0008567,91224.0,91223.0,0.109621]
[1731731740761,0.0008567,91224.0,91223.0,0.2143606]
[1731731742039,0.0008567,91224.0,91223.0,0.132621]
[1731731742715,0.0008567,91224.0,91223.0,0.2143606]
[1731731743928,0.0008567,91224.0,91223.0,0.25820842]
[1731731744601,0.0008567,91224.0,91223.0,0.37227097]
[1731731744812,0.0008567,91224.0,91223.0,0.41985637]
[1731731745351,0.0008567,91224.0,91223.0,0.33811677]
[1731731745500,0.0008567,91224.0,91223.0,0.52381603]
[1731731745719,0.0008567,91224.0,91223.0,0.52333063]
[1731731748171,0.0008567,91224.0,91223.0,0.9535359]
[1731731748362,0.0008567,91224.0,91223.0,0.85555563]
[1731731748717,0.0008567,91224.0,91223.0,0.61033683]
[1731731748940,0.0008567,91224.0,91223.0,0.77381603]
[1731731749150,0.0008567,91224.0,91223.0,0.87174101]
[1731731749356,0.0008567,91224.0,91223.0,0.77381603]
[1731731752555,0.0008567,91224.0,91223.0,0.85571603]
[1731731752773,0.0045146,91246.0,91234.0,0.267508]
[1731731752995,0.0045146,91246.0,91234.0,0.54004975]
[1731731756282,0.0045146,91246.0,91234.0,0.53944648]
[1731731756686,0.16471661,91253.0,91234.0,0.53944648]
[1731731756687,0.0045146,91250.0,91234.0,0.53944648]
[1731731756945,0.0045146,91246.0,91234.0,0.53944648]
[1731731758572,0.0045146,91246.0,91234.0,0.5843659]
[1731731760904,0.0045146,91246.0,91234.0,0.5863659]
[1731731761945,0.0053716,91251.0,91234.0,0.5863659]
[1731731762116,0.0045146,91246.0,91234.0,0.5863659]
[1731731762946,0.0045146,91246.0,91234.0,0.5843659]
[1731731763212,0.0045146,91246.0,91238.0,0.13699973]
[1731731763392,0.000857,91251.0,91238.0,0.24606228]
[1731731763607,0.0045146,91246.0,91238.0,0.24606228]
[1731731764034,0.0045146,91246.0,91238.0,0.40954148]
[1731731765629,0.0045146,91246.0,91238.0,0.24606228]
[1731731765837,0.0045146,91246.0,91238.0,0.32780188]
[1731731765838,0.0809,91244.0,91238.0,0.32780188]
[1731731766226,0.0809,91244.0,91238.0,0.4314153]
[1731731766855,0.0809,91244.0,91238.0,0.3496757]
[1731731767666,0.0809,91244.0,91238.0,0.4314153]
[1731731769456,0.0809,91244.0,91238.0,0.42701857]
[1731731769877,0.0809,91244.0,91238.0,0.4314153]
[1731731770293,0.0809,91244.0,91238.0,0.42701857]
[1731731772525,0.0809,91244.0,91238.0,0.4314153]
[1731731772941,0.0809,91244.0,91238.0,0.26353937]
[1731731773147,0.048957,91239.0,91238.0,0.26353937]
[1731731773358,0.048957,91239.0,91238.0,0.1913426]
[1731731774245,0.06022802,91239.0,91238.0,0.1913426]
[1731731774598,0.06022802,91239.0,91238.0,0.2143426]
[1731731778505,0.13602802,91239.0,91238.0,0.2143426]
[1731731778871,0.124757,91239.0,91238.0,0.2143426]
[1731731779064,0.1292716,91239.0,91238.0,0.2143426]
[1731731786142,0.000857,91239.0,91238.0,0.40514475]
[1731731786567,0.000857,91239.0,91238.0,0.50328359]
[1731731786783,0.000857,91239.0,91238.0,0.40514475]
[1731731787224,0.000857,91239.0,91238.0,0.50328359]
[1731731787666,0.000857,91239.0,91238.0,0.31248144]
[1731731787866,0.000857,91239.0,91238.0,0.2143426]
[1731731788798,0.0053716,91239.0,91238.0,0.2143426]
[1731731790141,0.0053716,91239.0,91238.0,0.21394082]
[1731731790574,0.0053716,91239.0,91238.0,0.13220122]
[1731731791017,0.0053716,91239.0,91238.0,0.31207966]
[1731731791873,0.00597487,91239.0,91238.0,0.21394082]
[1731731793383,0.05427487,91239.0,91238.0,0.21394082]
[1731731797196,0.05427487,91239.0,91238.0,0.13220122]
[1731731801006,0.05427487,91239.0,91238.0,0.21394082]
[1731731804265,0.05427487,91239.0,91238.0,0.21565522]
[1731731805552,0.05427487,91239.0,91238.0,0.0017144]
[1731731805993,0.06551874,91239.0,91238.0,0.0017144]
[1731731806229,0.14251874,91239.0,91238.0,0.0017144]
[1731731807062,0.14251874,91239.0,91228.0,0.219228]
[1731731807063,0.00060327,91233.0,91229.0,0.438456]
[1731731807274,0.00060327,91233.0,91232.0,0.10961]
[1731731808190,0.07890327,91233.0,91232.0,0.10961]
[1731731809203,0.07890327,91233.0,91232.0,0.1913496]
[1731731810519,0.0045146,91225.0,91224.0,0.12010807]
[1731731810777,0.0045146,91225.0,91224.0,0.10962]
[1731731810778,0.00511787,91225.0,91224.0,0.10962]
[1731731811014,0.00511787,91225.0,91224.0,0.15385921]
[1731731813502,0.01630596,91225.0,91224.0,0.15385921]
[1731731813930,0.01630596,91225.0,91224.0,0.10962]
[1731731814368,0.00511787,91219.0,91218.0,0.01143931]
[1731731814592,0.00511787,91219.0,91211.0,0.36676743]
[1731731814593,0.00060327,91217.0,91212.0,0.023]
[1731731814811,0.00060327,91217.0,91216.0,0.109629]
[1731731815255,0.01176671,91217.0,91216.0,0.109629]
[1731731815867,0.00060327,91212.0,91211.0,0.109635]
[1731731816084,0.00060327,91212.0,91207.0,0.0017138]
[1731731816085,0.00511787,91208.0,91207.0,0.0017138]
[1731731816312,0.01619943,91208.0,91207.0,0.0017138]
[1731731818016,0.12583843,91208.0,91207.0,0.0017138]
[1731731818422,0.02567642,91208.0,91207.0,0.1113538]
[1731731818628,0.01559616,91208.0,91207.0,0.1113538]
[1731731819042,0.0045146,91209.0,91208.0,0.132639]
[1731731820637,0.0045146,91211.0,91210.0,0.109637]
[1731731820840,0.0045146,91211.0,91210.0,0.2143766]
[1731731821050,0.0045146,91215.0,91213.0,0.023]
[1731731821273,0.0045146,91215.0,91214.0,0.1913716]
[1731731821491,0.0783,91227.0,91215.0,0.023]
[1731731821492,0.0045146,91219.0,91215.0,0.023]
[1731731821701,0.0045146,91219.0,91218.0,0.1913666]
[1731731822761,0.0045146,91225.0,91224.0,0.10962]
[1731731822986,0.00511787,91225.0,91224.0,0.1913596]
[1731731824692,0.00511787,91225.0,91224.0,0.2730992]
[1731731826659,0.00511787,91225.0,91224.0,0.1913596]
[1731731827502,0.00511787,91225.0,91224.0,0.23545131]
[1731731827825,0.00511787,91225.0,91224.0,0.23716571]
[1731731830915,0.0045146,91225.0,91224.0,0.34190531]
[1731731833882,0.0008572,91233.0,91232.0,0.13261]
[1731731834080,0.0053718,91233.0,91232.0,0.2143496]
[1731731834708,0.0008572,91233.0,91232.0,0.2143496]
[1731731835304,0.0053718,91233.0,91232.0,0.2143496]
[1731731835934,0.0008572,91233.0,91232.0,0.2143496]
[1731731836359,0.0053718,91233.0,91232.0,0.2143496]
[1731731837207,0.0053718,91233.0,91232.0,0.21405553]
[1731731837832,0.0008572,91233.0,91232.0,0.21405553]
[1731731841117,0.0008572,91233.0,91232.0,0.21576993]
[1731731841336,0.0008572,91233.0,91232.0,0.21396993]
[1731731844980,0.0008572,91233.0,91232.0,0.23619981]
[1731731847491,0.0008572,91233.0,91232.0,0.10923033]
[1731731847670,0.0482572,91233.0,91232.0,0.10923033]
[1731731848083,0.05771876,91233.0,91232.0,0.10923033]
[1731731848307,0.05832203,91233.0,91232.0,0.10923033]
[1731731850073,0.05832203,91233.0,91232.0,0.0017144]
[1731731850074,0.06283663,91233.0,91232.0,0.0017144]
[1731731850800,0.06283663,91233.0,91232.0,0.1113244]
[1731731851004,0.01543663,91233.0,91232.0,0.1113244]
[1731731851581,0.00597507,91233.0,91232.0,0.1113244]
[1731731855779,0.00597507,91233.0,91232.0,0.0017144]
[1731731855780,0.13217507,91233.0,91232.0,0.0017144]
[1731731856201,0.14162343,91233.0,91232.0,0.0017144]
[1731731857348,0.25123243,91233.0,91232.0,0.0017144]
[1731731857555,0.26073209,91233.0,91232.0,0.0017144]
[1731731857795,0.27818004,91233.0,91232.0,0.0017144]